fUSD/lending_fUSD_20260406
["ID","MTS","AMOUNT","RATE_DAILY","PERIOD"]
[419932426,1775518243108,-151.0,0.00013222,2]
[419932427,1775518243118,-151.0,0.00013222,2]
[419932428,1775518243128,-281.19897868,0.00013222,2]
[419932429,1775518243137,-500.0,0.00013222,2]
[419932430,1775518243147,-104.40837328,0.00013222,2]
[419932431,1775518243195,-395.59162672,0.00013222,2]
[419932432,1775518243205,-500.0,0.00013222,2]
[419932433,1775518243214,-500.0,0.00013222,2]
[419932434,1775518243224,-500.0,0.00013222,2]
[419932435,1775518243234,-500.0,0.00013222,2]
[419932436,1775518243244,-500.0,0.00013222,2]
[419932437,1775518243255,-500.0,0.00013222,2]
[419932438,1775518243264,-500.0,0.00013222,2]
[419932439,1775518243274,-500.0,0.00013222,2]
[419932440,1775518243284,-500.0,0.00013222,2]
[419932441,1775518243293,-237.05172416,0.00013222,2]
[419932442,1775518243303,-500.0,0.00013222,2]
[419932443,1775518243313,-500.0,0.00013222,2]
[419932444,1775518243322,-151.0,0.00013222,2]
[419932445,1775518243332,-151.0,0.00013222,2]
[419932446,1775518243342,-151.0,0.00013222,2]
[419932447,1775518243352,-151.0,0.00013222,2]
[419932448,1775518243361,-151.0,0.00013222,2]
[419932449,1775518243370,-151.0,0.00013222,2]
[419932450,1775518243380,-151.0,0.00013222,2]
[419932451,1775518243390,-151.0,0.00013222,2]
[419932452,1775518243400,-151.0,0.00013222,2]
[419932453,1775518243410,-151.0,0.00013222,2]
[419932454,1775518243419,-151.0,0.00013222,2]
[419932455,1775518243429,-151.0,0.00013222,2]
[419932456,1775518243440,-166.66,0.0001323,2]
[419932457,1775518243450,-160.0,0.00013326,2]
[419932458,1775518243460,-377.13615219,0.00013406,2]
[419932459,1775518243469,-587.0,0.00013412,2]
[419932460,1775518243479,-622.87687193,0.00013425,2]
[419932461,1775518243491,-2617.12312807,0.00013425,2]
[419932462,1775518243501,-2351.0,0.00013442,2]
[419932463,1775518243511,-168.5326,0.000135,2]
[419932464,1775518243520,-1178.68971943,0.00013573,2]
[419932465,1775518243532,-561.22993896,0.00013573,2]
[419932466,1775518243556,-760.08034161,0.00013573,2]
[419932467,1775518243566,-51.14675242,0.00013598,2]
[419932468,1775518243784,-653.67658797,0.00013598,2]
[419932472,1775518243838,-20941.15403431,0.00013598,2]
[419932473,1775518243848,-166.66,0.00013666,2]
[419932475,1775518243857,-2323.6532,0.00013671,2]
[419932477,1775518243866,-31768.53276567,0.00013673,2]
[419932482,1775518246275,-1902.38895075,0.00013673,2]
[419932483,1775518246655,-547.460072,0.00013673,2]
[419932484,1775518246667,-17177.14999999,0.00013673,2]
[419932494,1775518690736,158.42,6.135e-05,2]
[419932495,1775518690801,158.42,7.362e-05,2]
[419932499,1775519246124,-158.42,8.589e-05,2]
[419932500,1775519246145,-602.30956004,9.447e-05,2]
[419932503,1775519353130,-597.69043996,9.447e-05,2]
[419932504,1775519353152,-300.0,9.447e-05,2]
[419932505,1775519353174,-300.0,9.447e-05,2]
[419932506,1775519353197,-300.0,9.447e-05,2]
[419932507,1775519353219,-5000.0,9.448e-05,2]
[419932508,1775519353242,-811.86955659,9.448e-05,2]
[419932509,1775519364133,-468.40724644,9.448e-05,2]
[419932521,1775519433093,-23.15798037,9.448e-05,2]
[419932522,1775519433102,-158.42,9.816e-05,2]
[419932523,1775519433112,-2960.0,0.00010393,2]
[419932524,1775519433121,-500.0,0.000104,2]
[419932525,1775519433131,-1008.0,0.000105,5]
[419932526,1775519433142,-158.42,0.00011043,2]
[419932527,1775519433153,-500.0,0.00011068,2]
[419932528,1775519433164,-153.51,0.00011269,2]
[419932529,1775519433174,-1200.0,0.00011272,2]
[419932530,1775519433185,-6312.51,0.00011273,2]
[419932531,1775519433194,-1444.65,0.00011325,2]
[419932532,1775519433205,-150.99,0.00011381,2]
[419932533,1775519433215,-150.0,0.000114,2]
[419932534,1775519433224,-576.41909116,0.00011473,2]
[419932535,1775519433233,-4518.85,0.00011507,2]
[419932536,1775519433243,-251.83,0.00011606,2]
[419932537,1775519433252,-502.24991065,0.00011688,2]
[419932538,1775519433261,-620.46209973,0.00011688,2]
[419932539,1775519433271,-1072.44,0.00011839,2]
[419932540,1775519433281,-152.0,0.00012182,3]
[419932541,1775519433291,-2833.5,0.00012182,3]
[419932542,1775519433300,-2833.5,0.00012182,3]
[419932543,1775519433310,-2833.5,0.00012182,3]
[419932544,1775519433319,-2833.5,0.00012182,3]
[419932545,1775519433328,-158.42,0.0001227,2]
[419932546,1775519433338,-1680.0,0.00012399,2]
[419932547,1775519433348,-1385.87772554,0.0001244,2]
[419932548,1775519433360,-214.12227446,0.0001244,2]
[419932549,1775519433370,-250.0,0.00012484,2]
[419932550,1775519433380,-152.0,0.00012564,4]
[419932551,1775519433391,-22.2182628,0.00012663,2]
[419932552,1775519433402,-127.7817372,0.00012663,2]
[419932553,1775519433411,-241.87772554,0.00012664,2]
[419932568,1775519437533,-2565.87,0.00011364,2]
[419932569,1775519437543,-827.61794499,0.00012664,2]
[419932571,1775519437552,-500.0,0.00012664,2]
[419932572,1775519437562,-500.0,0.00012664,2]
[419932573,1775519437571,-500.0,0.00012664,2]
[419932574,1775519437581,-500.0,0.00012664,2]
[419932575,1775519437590,-500.0,0.00012664,2]
[419932576,1775519437600,-500.0,0.00012664,2]
[419932577,1775519437609,-500.0,0.00012664,2]
[419932578,1775519437618,-200.0,0.00012664,2]
[419932579,1775519437627,-207.93177675,0.00012664,2]
[419932580,1775519437643,-292.06822325,0.00012664,2]
[419932581,1775519437653,-500.0,0.00012664,2]
[419932582,1775519437662,-151.0,0.00012664,2]
[419932583,1775519437671,-151.0,0.00012664,2]
[419932584,1775519437681,-151.0,0.00012664,2]
[419932585,1775519437690,-151.0,0.00012664,2]
[419932586,1775519437699,-151.0,0.00012664,2]
[419932587,1775519437708,-55.56751847,0.00012664,2]
[419932588,1775519437740,-95.43248153,0.00012664,2]
[419932589,1775519437750,-151.0,0.00012664,2]
[419932590,1775519437759,-151.0,0.00012664,2]
[419932591,1775519437769,-151.0,0.00012664,2]
[419932592,1775519437779,-151.0,0.00012664,2]
[419932593,1775519437789,-151.0,0.00012664,2]
[419932594,1775519437799,-151.0,0.00012664,2]
[419932595,1775519437809,-151.0,0.00012664,2]
[419932596,1775519437819,-151.0,0.00012664,2]
[419932597,1775519437829,-151.0,0.00012664,2]
[419932598,1775519437839,-151.0,0.00012664,2]
[419932599,1775519437849,-151.0,0.00012664,2]
[419932601,1775519437858,-151.0,0.00012664,2]
[419932603,1775519437868,-151.0,0.00012664,2]
[419932605,1775519437878,-151.0,0.00012664,2]
[419932606,1775519437887,-151.0,0.00012664,2]
[419932607,1775519437898,-151.0,0.00012664,2]
[419932608,1775519437907,-151.0,0.00012664,2]
[419932609,1775519437918,-151.0,0.00012664,2]
[419932610,1775519437928,-151.0,0.00012664,2]
[419932611,1775519437938,-151.0,0.00012664,2]
[419932612,1775519437948,-151.0,0.00012664,2]
[419932613,1775519437957,-151.0,0.00012664,2]
[419932615,1775519437967,-1386.7839526,0.00012664,2]
[419932616,1775519437977,-151.0,0.00012664,2]
[419932617,1775519437986,-151.0,0.00012664,2]
[419932618,1775519437996,-151.0,0.00012664,2]
[419932619,1775519438006,-151.0,0.00012664,2]
[419932620,1775519438015,-151.0,0.00012664,2]
[419932621,1775519438025,-536.72810241,0.00012672,2]
[419932622,1775519438040,-463.27189759,0.00012672,2]
[419932623,1775519438049,-246.67629879,0.00012672,2]
[419932624,1775519438072,-1343.73963109,0.00012672,2]
[419932631,1775519439800,-19231.78637012,0.00012672,2]
[419932632,1775519439810,-5131.61754786,0.00012672,2]
[419932633,1775519439820,-2500.0,0.00012672,2]
[419932634,1775519439830,-826.92952961,0.00012672,2]
[419932635,1775519439840,-19481.37963723,0.00012672,2]
[419932636,1775519439850,-1097.45905794,0.00012672,2]
[419932637,1775519439859,-168.3563,0.000127,2]
[419932638,1775519439868,-1097.45905794,0.0001272,2]
[419932639,1775519439878,-462.27,0.00012738,2]
[419932640,1775519439887,-197.77789421,0.00012762,2]
[419932641,1775519439896,-1097.45905794,0.00012767,2]
[419932642,1775519439906,-762.3853133,0.00012767,2]
[419932643,1775519439915,-500.0,0.00012771,2]
[419932644,1775519439925,-500.0,0.00012771,2]
[419932645,1775519439935,-500.0,0.00012771,2]
[419932646,1775519439945,-500.0,0.00012771,2]
[419932647,1775519439954,-500.0,0.00012771,2]
[419932648,1775519439964,-500.0,0.00012771,2]
[419932649,1775519439973,-500.0,0.00012771,2]
[419932650,1775519439983,-500.0,0.00012771,2]
[419932651,1775519439993,-500.0,0.00012771,2]
[419932652,1775519440003,-500.0,0.00012771,2]
[419932653,1775519440012,-500.0,0.00012771,2]
[419932654,1775519440022,-500.0,0.00012771,2]
[419932655,1775519440031,-500.0,0.00012771,2]
[419932656,1775519440042,-500.0,0.00012771,2]
[419932657,1775519440052,-500.0,0.00012771,2]
[419932658,1775519440063,-500.0,0.00012771,2]
[419932659,1775519440072,-500.0,0.00012771,2]
[419932660,1775519440082,-500.0,0.00012771,2]
[419932661,1775519440092,-500.0,0.00012771,2]
[419932662,1775519440101,-500.0,0.00012771,2]
[419932663,1775519440110,-500.0,0.00012771,2]
[419932664,1775519440119,-500.0,0.00012771,2]
[419932665,1775519440129,-500.0,0.00012771,2]
[419932666,1775519440138,-500.0,0.00012771,2]
[419932667,1775519440147,-500.0,0.00012771,2]
[419932668,1775519440157,-500.0,0.00012771,2]
[419932669,1775519440166,-500.0,0.00012771,2]
[419932670,1775519440175,-500.0,0.00012771,2]
[419932671,1775519440184,-500.0,0.00012771,2]
[419932672,1775519440194,-500.0,0.00012771,2]
[419932673,1775519440203,-500.0,0.00012771,2]
[419932674,1775519440212,-500.0,0.00012771,2]
[419932675,1775519440222,-500.0,0.00012771,2]
[419932676,1775519440231,-500.0,0.00012771,2]
[419932677,1775519440241,-500.0,0.00012771,2]
[419932678,1775519440251,-500.0,0.00012771,2]
[419932679,1775519440261,-500.0,0.00012771,2]
[419932680,1775519440270,-500.0,0.00012771,2]
[419932681,1775519440279,-500.0,0.00012771,2]
[419932682,1775519440289,-500.0,0.00012771,2]
[419932683,1775519440299,-500.0,0.00012771,2]
[419932684,1775519440308,-500.0,0.00012771,2]
[419932685,1775519440317,-500.0,0.00012771,2]
[419932686,1775519440327,-500.0,0.00012771,2]
[419932687,1775519440337,-500.0,0.00012771,2]
[419932688,1775519440346,-500.0,0.00012771,2]
[419932689,1775519440355,-500.0,0.00012771,2]
[419932690,1775519440365,-500.0,0.00012771,2]
[419932691,1775519440374,-500.0,0.00012771,2]
[419932692,1775519440384,-500.0,0.00012771,2]
[419932693,1775519440394,-500.0,0.00012771,2]
[419932694,1775519440403,-500.0,0.00012771,2]
[419932695,1775519440412,-500.0,0.00012771,2]
[419932696,1775519440421,-500.0,0.00012771,2]
[419932697,1775519440431,-500.0,0.00012771,2]
[419932698,1775519440441,-500.0,0.00012771,2]
[419932699,1775519440451,-500.0,0.00012771,2]
[419932701,1775519440768,-500.0,0.00012771,2]
[419932702,1775519440836,-500.0,0.00012771,2]
[419932703,1775519440846,-500.0,0.00012771,2]
[419932704,1775519440856,-500.0,0.00012771,2]
[419932705,1775519440867,-232.96231006,0.00012771,2]
[419932706,1775519440876,-500.0,0.00012771,2]
[419932707,1775519440886,-500.0,0.00012771,2]
[419932708,1775519440896,-500.0,0.00012771,2]
[419932709,1775519440906,-500.0,0.00012771,2]
[419932710,1775519440915,-500.0,0.00012771,2]
[419932711,1775519440924,-500.0,0.00012771,2]
[419932712,1775519440934,-500.0,0.00012771,2]
[419932713,1775519440944,-443.61429513,0.00012771,2]
[419932714,1775519440953,-500.0,0.00012771,2]
[419932715,1775519440962,-195.05699266,0.00012771,2]
[419932716,1775519440972,-500.0,0.00012771,2]
[419932717,1775519440982,-500.0,0.00012771,2]
[419932718,1775519440991,-500.0,0.00012771,2]
[419932719,1775519441001,-500.0,0.00012771,2]
[419932720,1775519441010,-323.29623101,0.00012771,2]
[419932721,1775519441020,-266.55143098,0.00012771,2]
[419932722,1775519441029,-500.0,0.00012771,2]
[419932723,1775519441039,-428.03522177,0.00012771,2]
[419932724,1775519441048,-609.09277529,0.00012771,2]
[419932725,1775519441058,-258.14402566,0.00012771,2]
[419932726,1775519441067,-500.0,0.00012771,2]
[419932727,1775519441077,-500.0,0.00012771,2]
[419932728,1775519441086,-271.77561052,0.00012771,2]
[419932729,1775519441096,-1175091.9543,0.00012772,2]
[419932730,1775519441106,-98743.9449,0.00012772,2]
[419932731,1775519441116,-3473.37,0.00012867,2]
[419932732,1775519441126,-66053.9,0.00012871,2]
[419932733,1775519441136,-152.0,0.00012946,5]
[419932734,1775519441145,-501.0,0.00013,2]
[419932735,1775519441155,-501.0,0.00013,2]
[419932736,1775519441165,-462.27112601,0.00013006,2]
[419932737,1775519441174,-19481.37963714,0.00013031,2]
[419932738,1775519441186,-826.92952959,0.0001321,2]
[419932739,1775519441196,-200.0,0.00013212,2]
[419932740,1775519441206,-3797.0,0.00013291,2]
[419932741,1775519441216,-150.0,0.00013313,2]
[419932742,1775519441225,-160.0,0.00013325,2]
[419932743,1775519441235,-152.0,0.00013327,6]
[419932744,1775519441244,-1084.35002387,0.00013388,3]
[419932745,1775519441254,-19481.37963714,0.00013389,2]
[419932746,1775519441263,-180.933305,0.00013432,2]
[419932747,1775519441273,-3797.0,0.00013441,2]
[419932748,1775519441282,-3797.0,0.00013465,2]
[419932749,1775519441291,-3797.0,0.00013504,2]
[419932750,1775519441300,-3797.0,0.00013557,2]
[419932751,1775519441310,-160.0,0.00013567,2]
[419932752,1775519441319,-169.373981,0.00013567,2]
[419932753,1775519441329,-178.747962,0.00013567,2]
[419932754,1775519441339,-163.214929,0.00013567,2]
[419932755,1775519441348,-160.0,0.00013567,2]
[419932756,1775519441358,-404.001637,0.00013567,2]
[419932757,1775519441367,-648.003274,0.00013567,2]
[419932758,1775519441377,-160.0,0.00013567,2]
[419932759,1775519441386,-368.407922,0.00013567,2]
[419932760,1775519441395,-576.815844,0.00013567,2]
[419932761,1775519441405,-160.0,0.00013567,2]
[419932762,1775519441414,-248.324658,0.00013567,2]
[419932763,1775519441424,-336.649317,0.00013567,2]
[419932764,1775519441433,-500.0,0.00013573,2]
[419932765,1775519441443,-500.0,0.00013573,2]
[419932766,1775519441453,-500.0,0.00013573,2]
[419932767,1775519441463,-500.0,0.00013573,2]
[419932768,1775519441472,-170.09504983,0.00013573,2]
[419932769,1775519441482,-500.0,0.00013573,2]
[419932770,1775519441492,-500.0,0.00013573,2]
[419932771,1775519441502,-500.0,0.00013573,2]
[419932772,1775519441511,-167.73939669,0.00013573,2]
[419932773,1775519441521,-500.0,0.00013573,2]
[419932774,1775519441531,-245.86073687,0.00013573,2]
[419932776,1775519441542,-164.42551869,0.00013573,2]
[419932777,1775519441551,-500.26271237,0.00013573,2]
[419932778,1775519441560,-160.39801811,0.00013573,2]
[419932779,1775519441569,-160.0,0.00013578,2]
[419932780,1775519441578,-253.444415,0.00013578,2]
[419932781,1775519441587,-346.88883,0.00013578,2]
[419932782,1775519441597,-749.78250185,0.00013583,2]
[419932783,1775519441606,-10101.5592059,0.00013591,2]
[419932784,1775519441617,-3555.9555065,0.00013591,2]
[419932785,1775519441627,-29623.2480523,0.00013591,2]
[419932786,1775519441636,-285768.123907,0.00013591,2]
[419932787,1775519441646,-151.0,0.00013591,2]
[419932788,1775519441655,-151.0,0.00013591,2]
[419932789,1775519441664,-151.0,0.00013591,2]
[419932790,1775519441673,-241.488972,0.00013591,2]
[419932791,1775519441683,-1071.177262,0.00013591,2]
[419932792,1775519441692,-1071.177262,0.00013591,2]
[419932793,1775519441702,-1071.177262,0.00013591,2]
[419932794,1775519441711,-1071.177262,0.00013591,2]
[419932795,1775519441720,-1505.228735,0.00013591,2]
[419932796,1775519441729,-1505.228735,0.00013591,2]
[419932797,1775519441739,-1505.228735,0.00013591,2]
[419932798,1775519441749,-1505.228735,0.00013591,2]
[419932799,1775519441759,-948.836594,0.00013591,2]
[419932800,1775519441769,-948.836594,0.00013591,2]
[419932801,1775519441779,-948.836594,0.00013591,2]
[419932802,1775519441788,-948.836594,0.00013591,2]
[419932803,1775519441797,-5888.0,0.00013608,2]
[419932804,1775519441806,-578.20924308,0.00013635,2]
[419932805,1775519441815,-201.93286099,0.00013635,2]
[419932806,1775519441827,-9211.34798985,0.00013635,2]
[419932807,1775519441836,-695.39793187,0.00013635,2]
[419932808,1775519441846,-200.0,0.00013635,2]
[419932809,1775519441855,-500.0,0.00013635,2]
[419932810,1775519441864,-500.0,0.00013635,2]
[419932811,1775519441873,-500.0,0.00013635,2]
[419932812,1775519441882,-500.0,0.00013635,2]
[419932813,1775519441891,-500.0,0.00013635,2]
[419932814,1775519441900,-500.0,0.00013635,2]
[419932815,1775519441910,-500.0,0.00013635,2]
[419932816,1775519441919,-500.0,0.00013635,2]
[419932817,1775519441928,-500.0,0.00013635,2]
[419932818,1775519441938,-500.0,0.00013635,2]
[419932819,1775519441950,-500.0,0.00013635,2]
[419932820,1775519441959,-500.0,0.00013635,2]
[419932821,1775519441969,-500.0,0.00013635,2]
[419932822,1775519441979,-1000.0,0.00013635,2]
[419932823,1775519441988,-1000.0,0.00013635,2]
[419932824,1775519441997,-750.0,0.00013635,2]
[419932825,1775519442007,-1377.42282659,0.00013635,2]
[419932826,1775519442016,-151.0,0.00013635,2]
[419932827,1775519442026,-743.50770149,0.00013635,2]
[419932828,1775519442035,-174.61919141,0.00013635,2]
[419932829,1775519442044,-668.65185757,0.00013635,2]
[419932830,1775519442054,-3000.0,0.00013635,2]
[419932831,1775519442063,-2500.0,0.00013635,2]
[419932832,1775519442073,-279.9045709,0.00013635,2]
[419932833,1775519442082,-1500.0,0.00013635,2]
[419932834,1775519442092,-1017.99332474,0.00013635,2]
[419932835,1775519442101,-2351.0,0.00013639,2]
[419932836,1775519442111,-151.0,0.00013673,2]
[419932837,1775519442120,-151.0,0.00013673,2]
[419932838,1775519442130,-200.0,0.00013673,2]
[419932839,1775519442139,-500.0,0.00013673,2]
[419932840,1775519442148,-3797.0,0.00013673,2]
[419932841,1775519442158,-611.23,0.00013688,2]
[419932842,1775519442167,-1201.69,0.00013688,2]
[419932843,1775519442176,-955.63,0.00013688,2]
[419932844,1775519442186,-5285.76,0.00013688,2]
[419932845,1775519442195,-9552.16786547,0.0001369,2]
[419932846,1775519442205,-500.0,0.0001369,2]
[419932847,1775519442215,-151.0,0.0001369,2]
[419932848,1775519442224,-151.0,0.00013696,2]
[419932849,1775519442233,-500.0,0.00013698,2]
[419932850,1775519442243,-500.0,0.00013698,2]
[419932851,1775519442253,-500.0,0.00013698,2]
[419932852,1775519442262,-500.0,0.00013698,2]
[419932853,1775519442272,-500.0,0.00013698,2]
[419932854,1775519442282,-500.0,0.00013698,2]
[419932855,1775519442292,-500.0,0.00013698,2]
[419932856,1775519442301,-500.0,0.00013698,2]
[419932857,1775519442311,-500.0,0.00013698,2]
[419932858,1775519442320,-500.0,0.00013698,2]
[419932859,1775519442329,-547.42518034,0.00013698,2]
[419932861,1775519442339,-500.0,0.00013698,2]
[419932863,1775519442349,-500.0,0.00013698,2]
[419932864,1775519442358,-500.0,0.00013698,2]
[419932865,1775519442367,-500.0,0.00013698,2]
[419932866,1775519442376,-500.0,0.00013698,2]
[419932867,1775519442386,-500.0,0.00013698,2]
[419932868,1775519442395,-500.0,0.00013698,2]
[419932869,1775519442404,-500.0,0.00013698,2]
[419932870,1775519442414,-500.0,0.00013698,2]
[419932871,1775519442423,-500.0,0.00013698,2]
[419932872,1775519442433,-500.0,0.00013698,2]
[419932873,1775519442444,-500.0,0.00013698,2]
[419932874,1775519442454,-500.0,0.00013698,2]
[419932875,1775519442464,-500.0,0.00013698,2]
[419932876,1775519442474,-500.0,0.00013698,2]
[419932877,1775519442484,-500.0,0.00013698,2]
[419932878,1775519442494,-500.0,0.00013698,2]
[419932879,1775519442503,-500.0,0.00013698,2]
[419932880,1775519442513,-500.0,0.00013698,2]
[419932881,1775519442523,-500.0,0.00013698,2]
[419932882,1775519442533,-500.0,0.00013698,2]
[419932883,1775519442543,-500.0,0.00013698,2]
[419932884,1775519442552,-500.0,0.00013698,2]
[419932885,1775519442561,-500.0,0.00013698,2]
[419932886,1775519442571,-500.0,0.00013698,2]
[419932887,1775519442580,-500.0,0.00013698,2]
[419932888,1775519442590,-500.0,0.00013698,2]
[419932889,1775519442600,-500.0,0.00013698,2]
[419932890,1775519442609,-500.0,0.00013698,2]
[419932891,1775519442619,-500.0,0.00013698,2]
[419932892,1775519442630,-500.0,0.00013698,2]
[419932893,1775519442639,-500.0,0.00013698,2]
[419932894,1775519442648,-500.0,0.00013698,2]
[419932895,1775519442658,-500.0,0.00013698,2]
[419932896,1775519442668,-500.0,0.00013698,2]
[419932897,1775519442678,-500.0,0.00013698,2]
[419932898,1775519442688,-500.0,0.00013698,2]
[419932899,1775519442698,-500.0,0.00013698,2]
[419932900,1775519442707,-500.0,0.00013698,2]
[419932901,1775519442717,-500.0,0.00013698,2]
[419932902,1775519442727,-500.0,0.00013698,2]
[419932903,1775519442736,-500.0,0.00013698,2]
[419932904,1775519442745,-500.0,0.00013698,2]
[419932905,1775519442755,-500.0,0.00013698,2]
[419932906,1775519442764,-500.0,0.00013698,2]
[419932907,1775519442774,-500.0,0.00013698,2]
[419932908,1775519442783,-500.0,0.00013698,2]
[419932909,1775519442794,-500.0,0.00013698,2]
[419932910,1775519442805,-500.0,0.00013698,2]
[419932911,1775519442815,-500.0,0.00013698,2]
[419932912,1775519442826,-500.0,0.00013698,2]
[419932913,1775519442836,-502.76097898,0.00013698,2]
[419932914,1775519442847,-500.0,0.00013698,2]
[419932915,1775519442857,-500.0,0.00013698,2]
[419932916,1775519442866,-500.0,0.00013698,2]
[419932917,1775519442876,-500.0,0.00013698,2]
[419932918,1775519442887,-500.0,0.00013698,2]
[419932919,1775519442897,-500.0,0.00013698,2]
[419932920,1775519442907,-500.0,0.00013698,2]
[419932921,1775519442916,-500.0,0.00013698,2]
[419932922,1775519442926,-500.0,0.00013698,2]
[419932923,1775519442936,-500.0,0.00013698,2]
[419932924,1775519442946,-500.0,0.00013698,2]
[419932925,1775519442959,-500.0,0.00013698,2]
[419932926,1775519442968,-500.0,0.00013698,2]
[419932927,1775519442979,-500.0,0.00013698,2]
[419932928,1775519442988,-500.0,0.00013698,2]
[419932929,1775519442998,-500.0,0.00013698,2]
[419932930,1775519443008,-500.0,0.00013698,2]
[419932931,1775519443019,-500.0,0.00013698,2]
[419932932,1775519443028,-500.0,0.00013698,2]
[419932933,1775519443038,-597.09699837,0.00013698,2]
[419932934,1775519443048,-500.0,0.00013698,2]
[419932935,1775519443058,-500.0,0.00013698,2]
[419932936,1775519443067,-500.0,0.00013698,2]
[419932937,1775519443077,-500.0,0.00013698,2]
[419932938,1775519443086,-500.0,0.00013698,2]
[419932939,1775519443096,-500.0,0.00013698,2]
[419932940,1775519443105,-500.0,0.00013698,2]
[419932941,1775519443115,-500.0,0.00013698,2]
[419932942,1775519443124,-500.0,0.00013698,2]
[419932943,1775519443134,-500.0,0.00013698,2]
[419932944,1775519443144,-500.0,0.00013698,2]
[419932945,1775519443154,-500.0,0.00013698,2]
[419932946,1775519443164,-500.0,0.00013698,2]
[419932947,1775519443174,-500.0,0.00013698,2]
[419932948,1775519443183,-500.0,0.00013698,2]
[419932949,1775519443193,-500.0,0.00013698,2]
[419932950,1775519443203,-500.0,0.00013698,2]
[419932951,1775519443212,-500.0,0.00013698,2]
[419932952,1775519443222,-500.0,0.00013698,2]
[419932953,1775519443231,-500.0,0.00013698,2]
[419932954,1775519443241,-500.0,0.00013698,2]
[419932955,1775519443251,-500.0,0.00013698,2]
[419932956,1775519443261,-500.0,0.00013698,2]
[419932957,1775519443271,-629.61248699,0.00013698,2]
[419932958,1775519443281,-500.0,0.00013698,2]
[419932959,1775519443290,-500.0,0.00013698,2]
[419932960,1775519443300,-500.0,0.00013698,2]
[419932961,1775519443311,-500.0,0.00013698,2]
[419932962,1775519443320,-500.0,0.00013698,2]
[419932963,1775519443330,-500.0,0.00013698,2]
[419932964,1775519443340,-500.0,0.00013698,2]
[419932965,1775519443350,-500.0,0.00013698,2]
[419932966,1775519443360,-500.0,0.00013698,2]
[419932967,1775519443370,-500.0,0.00013698,2]
[419932968,1775519443380,-500.0,0.00013698,2]
[419932969,1775519443390,-500.0,0.00013698,2]
[419932970,1775519443400,-618.35884444,0.00013698,2]
[419932971,1775519443409,-500.0,0.00013698,2]
[419932973,1775519443419,-500.0,0.00013698,2]
[419932974,1775519443429,-500.0,0.00013698,2]
[419932976,1775519443438,-500.0,0.00013698,2]
[419932978,1775519443447,-500.0,0.00013698,2]
[419932980,1775519443456,-189.82902191,0.00013698,2]
[419932982,1775519443465,-500.0,0.00013698,2]
[419932984,1775519443475,-500.0,0.00013698,2]
[419932986,1775519443484,-500.0,0.00013698,2]
[419932988,1775519443494,-500.0,0.00013698,2]
[419932990,1775519443503,-500.0,0.00013698,2]
[419932992,1775519443514,-500.0,0.00013698,2]
[419932994,1775519443523,-500.0,0.00013698,2]
[419932996,1775519443533,-500.0,0.00013698,2]
[419932997,1775519443542,-609.59532014,0.00013698,2]
[419932998,1775519443552,-500.0,0.00013698,2]
[419932999,1775519443561,-500.0,0.00013698,2]
[419933000,1775519443570,-506.53549507,0.00013698,2]